[Event "Sautron op 14th"]
[Site "Sautron"]
[Date "2014.11.01"]
[Round "9"]
[White "Bailet, Pierre"]
[Black "Terrieux, Kevin"]
[Result "1/2-1/2"]
[ECO "A49"]
[WhiteElo "2485"]
[BlackElo "2409"]
[Annotator "RR"]
[PlyCount "49"]
[EventDate "2014.10.26"]
[EventType "swiss"]
[EventRounds "9"]
[EventCountry "FRA"]
[SourceTitle "EXT 2015"]
[Source "ChessBase"]
[SourceDate "2014.11.20"]
[SourceVersion "1"]
[SourceVersionDate "2014.11.20"]
[SourceQuality "1"]
[TimeControl "40/5400+30:1800+30"]

1. Nf3 Nf6 2. g3 g6 3. Bg2 Bg7 4. O-O O-O 5. d4 d6 6. Nbd2 {Une ligne
secondaire solide mais pas très ambitieuse} Nbd7 7. e4 e5 8. dxe5 (8. c3 Re8
9. Re1 b6 $11) 8... Nxe5 9. Nxe5 dxe5 10. Nc4 Qe7 11. Qe2 {[%cal Gf1d1]} (11.
b3 Rd8 12. Qe2 b6 13. Ba3 Qe6 14. Nb2 Bf8 15. Bxf8 Rxf8 16. Rfd1 Bb7 17. Qc4
Qe7 18. Rd2 Rad8 19. Rxd8 Rxd8 20. Rd1 Rxd1+ 21. Nxd1 Qd6 22. Ne3 Kg7 23. f3
Qd2 24. Nf1 Qd6 25. Ne3 Qd2 26. Nf1 Qd6 {1/2-1/2 (26) Huebner,R (2603)
-Kotronias,V (2607) Penne 2004}) 11... b6 12. Re1 $146 (12. Ne3 Bb7 13. f3 Rfd8
14. Re1 a5 15. Bd2 Qe6 16. Bc3 Bf8 17. Qc4 Qe7 18. Bf1 c6 19. a4 Qc7 20. Rad1
Bc5 21. Kg2 Qe7 22. Qb3 Rxd1 23. Nxd1 Bb4 24. Nf2 Nd7 25. Nd3 c5 26. Nf2 Nb8
27. Bxb4 axb4 28. c3 Nc6 29. Bb5 Na5 30. Qc2 b3 31. Qe2 Rd8 32. Rd1 Bc8 33.
Rxd8+ Qxd8 34. Nd1 Be6 35. Ne3 h5 36. h4 Qd6 37. Kf2 c4 38. Ke1 Qc5 39. Qf2 Qc8
40. Nd5 Bxd5 41. exd5 Qd8 {Karpov,A (2760)-Kotronias,V (2590) Athens 1997 1/
2-1/2}) (12. Rd1 Bg4 13. f3 Be6 14. Ne3 Rad8 15. Bd2 Rd7 16. Bc3 Qc5 17. Rxd7
Nxd7 18. Rd1 (18. Kh1)) 12... Bb7 13. b3 Rfd8 14. Bb2 Nd7 15. Rad1 (15. a4)
15... Nc5 16. f3 f6 17. a4 a5 18. Rxd8+ {Le début d'une simplification pour
jouer le minimum des 25 coups et annuler cette dernière partie.} Rxd8 19. Rd1
Rxd1+ 20. Qxd1 Qd7 21. Qxd7 Nxd7 22. Kf2 Kf7 23. Bf1 Bf8 24. Ne3 Bc5 25. Bc4+
1/2-1/2

[Event "Sautron op 16th"]
[Site "Sautron"]
[Date "2016.10.22"]
[Round "6.7"]
[White "Ider, Borya"]
[Black "Lejarre, Ludovic"]
[Result "1/2-1/2"]
[ECO "A49"]
[WhiteElo "2463"]
[BlackElo "2347"]
[Annotator "RR"]
[PlyCount "105"]
[EventDate "2016.10.22"]
[EventType "swiss"]
[EventRounds "9"]
[EventCountry "FRA"]
[SourceTitle "EXT 2019"]
[Source "ChessBase"]
[SourceDate "2018.10.10"]
[SourceVersion "1"]
[SourceVersionDate "2018.10.10"]
[SourceQuality "1"]
[TimeControl "40/5400+30:1800+30"]
[WhiteClock "0:31:54"]
[BlackClock "0:24:25"]

1. Nf3 {[%emt 0:00:00]} Nf6 {[%emt 0:00:00]} 2. b3 {[%emt 0:00:00]} g6 {
[%emt 0:01:05]} 3. Bb2 {[%emt 0:00:00]} Bg7 {[%emt 0:00:04]} 4. g3 {[%emt 0:00:
00]} O-O {[%emt 0:00:11]} 5. Bg2 {[%emt 0:00:05]} d6 {[%emt 0:00:41]} 6. d4 {
[%emt 0:01:06]} e5 {[%emt 0:03:02]} (6... Nbd7) 7. dxe5 {[%emt 0:01:56]} Nfd7 {
[%emt 0:00:56]} (7... Ng4 $143 8. h3 Nxe5 9. Nxe5 dxe5 10. Qxd8 Rxd8 11. Nd2 c6
12. O-O-O $32) 8. Nbd2 {[%emt 0:04:16][%cal Gd2c4,Gc4e5]} (8. O-O) (8. Nc3)
8... Nc6 {[%emt 0:09:22]} 9. Nc4 {[%emt 0:05:40]} (9. O-O dxe5 10. Nc4 Re8 11.
e3 Qe7 12. Ba3 Qf6 13. Bb2 Qe7 14. Nfd2 Nb6 15. Qe2 f5 16. a4 e4 17. Nxb6 axb6
18. Bxg7 Kxg7 19. Nc4 Be6 20. Rfd1 Red8 21. Bf1 Qb4 22. Kg2 Kf6 23. h4 h6 24.
Na3 Rxd1 25. Qxd1 Rd8 26. Qc1 Ne5 27. Nb5 c6 28. Nd4 Qc3 29. Ne2 Qd2 30. Qb2 g5
31. hxg5+ hxg5 32. Nc3 Qd6 33. Rd1 Qe7 34. Rxd8 Qxd8 35. Ne2 Qd6 36. Nd4 Kg6
37. Be2 Bd7 38. Qc3 c5 {Skripchenko,A (2449)-Videnova,I (2315) Plovdiv 2014 1/
2-1/2 (91)}) 9... Ndxe5 {[%emt 0:04:05]} 10. Nfxe5 {[%emt 0:03:26]} Nxe5 {
[%emt 0:01:48]} 11. Nxe5 {[%emt 0:16:40]} Bxe5 {[%emt 0:04:11]} 12. Qc1 {
[%emt 0:00:10]} (12. Bxe5 dxe5 13. Qxd8 Rxd8 14. Rd1 Rxd1+ 15. Kxd1 Kf8 $11)
12... Qf6 $1 $146 {[%emt 0:02:07]} (12... Re8 13. c3 Bg7 14. Qd2 Bg4 15. e3 c6
16. h3 Bf5 17. O-O d5 18. Rac1 Be4 19. Rfd1 Qf6 20. Ba1 Bxg2 21. Kxg2 Qf5 22.
Qd3 Qe4+ 23. Qxe4 Rxe4 24. Rc2 Rd8 25. c4 Bxa1 26. Rxa1 dxc4 27. bxc4 Rd3 28.
Rb1 b6 29. Kf3 Re5 30. Ke2 Ra3 31. h4 Rea5 32. Rbb2 R5a4 33. Kd2 Kf8 34. Kc1
Ke7 35. Kb1 Kd6 36. Rb3 Kc5 37. Rxa3 Rxa3 38. Kb2 Rd3 39. a3 h5 40. Ka2 f6 41.
Kb2 a6 42. Ka2 {Bauza,A (2300)-Crosa Coll,M (2215) Montevideo 2000 0-1}) 13. c3
$11 {[%emt 0:00:23] Sans surprise le début peu ambitieux des Blancs n'a non
seulement donné aucun avantage mais les Blancs doivent maintenant lutter pour
garder l'égalité.} Qe7 {[%emt 0:03:06]} 14. O-O {[%emt 0:00:07]} Bg7 {
[%emt 0:05:08]} 15. Re1 {[%emt 0:00:46]} (15. Qd2) 15... Rb8 {[%emt 0:02:06]}
16. c4 {[%emt 0:00:27]} b6 {[%emt 0:04:05]} 17. Bxg7 {[%emt 0:04:43]} Kxg7 {
[%emt 0:00:43]} 18. Qd2 {[%emt 0:00:05]} Re8 {[%emt 0:04:29]} 19. Rac1 {
[%emt 0:00:20]} a5 {[%emt 0:13:48]} 20. a3 {[%emt 0:01:39]} Qe5 {[%emt 0:01:46]
} 21. Rc3 {[%emt 0:00:20]} Bg4 {[%emt 0:04:38]} 22. Bc6 {[%emt 0:00:37]} Red8 {
[%emt 0:04:12]} 23. Re3 {[%emt 0:00:15]} Qf6 {[%emt 0:01:06]} 24. b4 {[%emt 0:
00:07]} axb4 {[%emt 0:00:27]} 25. axb4 {[%emt 0:00:05]} Bd7 {[%emt 0:03:45]}
26. Bd5 {[%emt 0:00:31]} Be6 {[%emt 0:00:30]} 27. b5 {[%emt 0:00:05][%csl Rc7]}
Bxd5 {[%emt 0:02:18]} 28. cxd5 {[%emt 0:00:34]} Ra8 {[%emt 0:01:05]} 29. Rc1 {
[%emt 0:00:05]} Rd7 {[%emt 0:12:57]} 30. Rc4 {[%emt 0:07:34]} (30. Rec3 Qd8 31.
Qb2 {[%cal Gc3c7,Gb2g7]} Kg8) 30... Ra5 {[%emt 0:02:21]} 31. Qb4 {[%emt 0:19:
48]} Re7 {[%emt 0:06:01] Plus que 04 mns pour passer le contrôle de temps} 32.
Rf3 {[%emt 0:02:31]} Qe5 {[%emt 0:02:08]} 33. e4 {[%emt 0:00:47]} Qa1+ {
[%emt 0:01:01]} 34. Kg2 {[%emt 0:00:03]} Qe5 {[%emt 0:00:55]} 35. Rfc3 {
[%emt 0:00:06] Les Noirs n'ont qu'une seule faiblesse relativement facile à
protéger} Ra7 {[%emt 0:00:49]} 36. Rc2 {[%emt 0:00:13]} f5 {[%emt 0:00:26]}
37. f4 {[%emt 0:00:14]} Qa1 $6 {[%emt 0:00:30] Joué quasiment à tempo mais
les Noirs n'avaient plus qu'une minute à la pendule} (37... Qf6) 38. e5 $1 {
[%emt 0:00:02][%cal Gb4e7]} Ra2 {[%emt 0:00:20]} 39. e6 {[%emt 0:00:37]} (39.
exd6 Re2+) 39... Rxc2+ {[%emt 0:00:33]} 40. Rxc2 {[%emt 0:00:00]} Qd1 {[%emt 0:
00:00] Le contrôle de temps est passé ùais la position Noire est difficile
à cause du P passé} 41. Qb2+ {[%emt 0:01:50]} Kh6 {[%emt 0:03:00]} 42. Rd2 {
[%emt 0:00:12]} Qe1 {[%emt 0:00:17]} 43. Qd4 {[%emt 0:00:06]} Re8 {[%emt 0:00:
56]} 44. Rc2 {[%emt 0:01:36]} Ra8 $1 {[%emt 0:00:40]} 45. Qd2 {[%emt 0:13:56]}
Qe4+ {[%emt 0:01:18]} 46. Kh3 {[%emt 0:00:01]} Ra3 {[%emt 0:04:40]} 47. Rxc7 {
[%emt 0:11:44]} Qf3 {[%emt 0:00:48]} 48. Qb2 {[%emt 0:04:56]} Qg4+ {[%emt 0:00:
41]} 49. Kg2 {[%emt 0:01:36]} Qf3+ {[%emt 0:00:07]} 50. Kh3 {[%emt 0:01:26]}
Qg4+ {[%emt 0:00:10]} 51. Kg2 {[%emt 0:00:04]} Qf3+ {[%emt 0:00:06]} 52. Kg1 {
[%emt 0:00:39]} Qd1+ {[%emt 0:00:07]} 53. Kg2 {[%emt 0:00:07]} 1/2-1/2